bitfinex-derivatives/quotes_BNBF0:USTF0_20250507
["timestamp","ask_amount","ask_price","bid_price","bid_amount"]
[1746647665643,1.26546375,599.04,598.36,0.682]
[1746647665844,2.26347939,599.03,598.36,0.682]
[1746647666043,1.26546375,599.02,598.36,0.682]
[1746647666250,2.26347939,599.01,598.36,0.682]
[1746647666448,1.26606132,599.0,598.36,0.682]
[1746647666647,1.26606132,598.99,598.36,0.682]
[1746647666850,1.26606132,598.98,598.36,0.682]
[1746647667050,2.26407696,598.97,598.36,0.682]
[1746647667250,1.26606132,598.96,598.36,0.682]
[1746647667446,2.26407696,598.95,598.36,0.682]
[1746647667647,1.26606132,598.94,598.36,0.682]
[1746647667847,1.26606132,598.93,598.36,0.682]
[1746647668053,1.26606132,598.92,598.36,0.682]
[1746647668253,1.26606132,598.91,598.36,0.682]
[1746647668547,1.26606132,598.9,598.36,0.682]
[1746647668754,1.26606132,598.89,598.36,0.682]
[1746647669052,1.26606132,598.88,598.36,0.682]
[1746647669247,1.26606132,598.87,598.36,0.682]
[1746647669449,1.26606132,598.86,598.36,0.682]
[1746647669646,1.26606132,598.85,598.36,0.682]
[1746647669948,1.26606132,598.84,598.36,0.682]
[1746647670147,2.26460303,598.83,598.36,0.682]
[1746647670347,1.2664855,598.82,598.36,0.682]
[1746647670548,1.2664855,598.81,598.36,0.682]
[1746647670747,2.26460303,598.8,598.36,0.682]
[1746647670951,1.2664855,598.79,598.36,0.682]
[1746647671149,1.2664855,598.78,598.36,0.682]
[1746647671352,1.2664855,598.77,598.36,0.682]
[1746647671555,0.29069403,599.08,598.36,0.682]
[1746647671556,1.2664855,598.76,598.36,0.682]
[1746647671852,1.26463037,598.75,598.36,0.682]
[1746647672057,1.26463037,598.74,598.36,0.682]
[1746647672259,1.26463037,598.73,598.36,0.682]
[1746647672457,1.26463037,598.72,598.36,0.682]
[1746647672657,1.26463037,598.71,598.36,0.682]
[1746647672857,1.26463037,598.7,598.36,0.682]
[1746647673058,1.26463037,598.69,598.36,0.682]
[1746647673259,1.26463037,598.68,598.36,0.682]
[1746647673461,1.26463037,598.67,598.36,0.682]
[1746647673661,1.26539127,598.66,598.36,0.682]
[1746647673860,0.69231042,600.01,598.36,0.682]
[1746647674060,0.33335555,599.96,598.36,0.682]
[1746647674361,0.29072317,599.03,598.36,0.682]
[1746647674566,1.26538118,599.02,598.36,0.682]
[1746647674761,1.26538118,599.01,598.36,0.682]
[1746647674962,1.26538118,599.0,598.36,0.682]
[1746647675156,1.26538118,598.99,598.36,0.682]
[1746647675359,1.26538118,598.98,598.36,0.682]
[1746647675557,1.26440326,598.97,598.36,0.682]
[1746647675758,1.26440326,598.96,598.36,0.682]
[1746647675958,1.26440326,598.95,598.36,0.682]
[1746647676157,1.26440326,598.94,598.36,0.682]
[1746647676363,1.26440326,598.93,598.36,0.682]
[1746647676661,1.26440326,598.92,598.36,0.682]
[1746647676862,1.26440326,598.91,598.36,0.682]
[1746647677062,1.26440326,598.9,598.36,0.682]
[1746647677262,1.26440326,598.89,598.36,0.682]
[1746647677461,1.26440326,598.88,598.36,0.682]
[1746647677662,1.26440326,598.87,598.36,0.682]
[1746647677864,1.26440326,598.86,598.36,0.682]
[1746647678063,1.26440326,598.85,598.36,0.682]
[1746647678362,1.26440326,598.84,598.36,0.682]
[1746647678558,1.26440326,598.83,598.36,0.682]
[1746647678764,1.26440326,598.82,598.36,0.682]
[1746647678964,1.26440326,598.81,598.35,0.835]
[1746647679157,1.26440326,598.8,598.35,0.835]
[1746647679357,1.26440326,598.79,598.35,0.835]
[1746647679559,0.29068311,599.1,598.35,0.835]
[1746647679761,1.26392325,599.09,598.35,0.835]
[1746647679959,1.26392325,599.08,598.35,0.835]
[1746647680159,1.26392325,599.07,598.35,0.835]
[1746647680463,1.26392325,599.06,598.35,0.835]
[1746647680659,1.26392325,599.05,598.35,0.835]
[1746647680864,1.26217997,599.04,598.35,0.835]
[1746647681065,1.26217997,599.03,598.35,0.835]
[1746647681266,1.26217997,599.02,598.35,0.835]
[1746647681569,1.26217997,599.01,598.35,0.835]
[1746647681763,1.26217997,599.0,598.36,0.678]
[1746647681965,1.26217997,598.99,598.36,0.678]
[1746647682161,1.26217997,598.98,598.36,0.678]
[1746647682364,1.26217997,598.97,598.36,0.678]
[1746647682567,1.26217997,598.96,598.36,0.678]
[1746647682767,1.26217997,598.95,598.36,0.678]
[1746647682967,1.26217997,598.94,598.36,0.678]
[1746647683165,1.26217997,598.93,598.36,0.678]
[1746647683366,1.26217997,598.92,598.36,0.678]
[1746647683569,1.26217997,598.91,598.36,0.678]
[1746647683767,1.26217997,598.9,598.36,0.678]
[1746647683973,1.26217997,598.89,598.36,0.678]
[1746647684172,1.26217997,598.88,598.36,0.678]
[1746647684374,1.26217997,598.87,598.36,0.678]
[1746647684569,1.26217997,598.86,598.36,0.678]
[1746647684770,0.29066247,599.14,598.36,0.678]
[1746647684771,1.26217997,598.85,598.36,0.678]
[1746647684969,2.26040466,598.84,598.36,0.678]
[1746647685174,1.26217997,598.83,598.36,0.678]
[1746647685475,1.26217997,598.82,598.36,0.678]
[1746647685674,1.26217997,598.81,598.36,0.678]
[1746647685874,1.26217997,598.8,598.36,0.678]
[1746647686072,2.26040466,598.79,598.36,0.678]
[1746647686271,0.99822469,598.79,598.36,0.678]
[1746647686475,0.29067825,599.14,598.36,0.678]
[1746647686678,1.26476601,599.13,598.36,0.678]
[1746647686874,1.26476601,599.12,598.36,0.678]
[1746647687075,1.26476601,599.11,598.36,0.678]
[1746647687276,1.26476601,599.1,598.37,0.863]
[1746647687474,1.26476601,599.09,598.37,0.863]
[1746647687771,1.26476601,599.08,598.37,0.863]
[1746647687973,1.26476601,599.07,598.37,0.863]
[1746647688177,1.26327474,599.06,598.37,0.863]
[1746647688375,1.26327474,599.05,598.37,0.863]
[1746647688575,1.26327474,599.04,598.37,0.863]
[1746647688776,1.26327474,599.03,598.37,0.863]
[1746647688975,1.26327474,599.02,598.37,0.863]
[1746647689177,1.26327474,599.01,598.37,0.863]
[1746647689379,1.26327474,599.0,598.37,0.863]
[1746647689671,1.26327474,598.99,598.37,0.863]
[1746647689877,1.26327474,598.98,598.37,0.863]
[1746647690075,1.26327474,598.97,598.37,0.863]
[1746647690273,1.26327474,598.96,598.37,0.863]
[1746647690473,1.26327474,598.95,598.37,0.863]
[1746647690680,1.26327474,598.94,598.38,1.032]
[1746647690974,1.26327474,598.93,598.38,1.032]
[1746647691174,1.26327474,598.92,598.38,1.032]
[1746647691375,1.26327474,598.91,598.38,1.032]
[1746647691575,1.26327474,598.9,598.38,1.032]
[1746647691875,1.26327474,598.89,598.38,1.032]
[1746647692075,1.26327474,598.88,598.38,1.032]
[1746647692279,1.26327474,598.87,598.38,1.032]
[1746647692475,1.26327474,598.86,598.38,1.032]
[1746647692675,1.26327474,598.85,598.38,1.032]
[1746647692879,1.26327474,598.84,598.38,1.032]
[1746647693177,1.26327474,598.83,598.38,1.032]
[1746647693376,1.26327474,598.82,598.38,1.032]
[1746647693576,1.26406703,598.81,598.38,1.032]
[1746647693780,0.29065033,599.14,598.38,1.032]
[1746647693982,1.26406207,599.13,598.38,1.032]
[1746647694179,1.26406207,599.12,598.38,1.032]
[1746647694375,1.26406207,599.11,598.38,1.032]
[1746647694581,0.29065033,599.14,598.38,1.032]
[1746647694582,1.26406207,599.1,598.38,1.032]
[1746647694780,1.26406207,599.09,598.38,1.032]
[1746647694979,1.26406207,599.08,598.38,1.032]
[1746647695178,1.26406207,599.07,598.38,1.032]
[1746647695383,1.26406207,599.06,598.38,1.032]
[1746647695681,1.26406207,599.05,598.38,1.032]
[1746647695882,1.26406207,599.04,598.38,1.032]
[1746647696082,1.26406207,599.03,598.38,1.032]
[1746647696277,1.26406207,599.02,598.38,1.032]
[1746647696478,1.26406207,599.01,598.38,1.032]
[1746647696678,1.26406207,599.0,598.38,1.032]
[1746647696882,2.26244061,598.99,598.38,1.032]
[1746647697083,1.26406207,598.98,598.38,1.032]
[1746647697278,2.26339632,598.97,598.38,1.032]
[1746647697483,1.26502501,598.96,598.38,1.032]
[1746647697679,1.26502501,598.95,598.38,1.032]
[1746647697883,2.26339632,598.94,598.38,1.032]
[1746647698080,1.26502501,598.93,598.38,1.032]
[1746647698285,1.26502501,598.92,598.38,1.032]
[1746647698479,2.26339632,598.91,598.38,1.032]
[1746647698680,1.26502501,598.9,598.38,1.032]
[1746647698885,2.26339632,598.89,598.38,1.032]
[1746647699081,1.2648534,598.88,598.38,1.032]
[1746647699281,2.26322471,598.87,598.38,1.032]
[1746647699484,1.2648534,598.86,598.38,1.032]
[1746647699688,1.26474368,598.85,598.38,1.032]
[1746647699888,2.26311499,598.84,598.38,1.032]
[1746647700083,1.26474368,598.83,598.38,1.032]
[1746647700285,1.26474368,598.82,598.38,1.032]
[1746647700490,2.26311499,598.81,598.38,1.032]
[1746647700686,1.26474368,598.8,598.38,1.032]
[1746647700986,2.26311499,598.79,598.38,1.032]
[1746647701186,1.26474368,598.78,598.38,1.032]
[1746647701385,0.99837131,598.79,598.38,1.032]
[1746647701386,1.26474368,598.77,598.38,1.032]
[1746647701586,1.26474368,598.76,598.38,1.032]
[1746647701789,1.26474368,598.75,598.38,1.032]
[1746647701990,1.26474368,598.74,598.38,1.032]
[1746647702292,1.26379722,598.73,598.38,1.032]
[1746647702491,0.29066611,599.11,598.38,1.032]
[1746647702492,1.26379722,598.72,598.38,1.032]
[1746647702690,1.26379722,598.71,598.38,1.032]
[1746647702892,1.26379722,598.7,598.38,1.032]
[1746647703092,1.26379722,598.69,598.38,1.032]
[1746647703290,1.26379722,598.68,598.38,1.032]
[1746647703491,0.29066611,599.11,598.38,1.032]
[1746647703686,1.26438582,599.1,598.38,1.032]
[1746647703891,1.26438582,599.09,598.38,1.032]
[1746647704086,1.26438582,599.08,598.38,1.032]
[1746647704294,1.26438582,599.07,598.38,1.032]
[1746647704595,1.26438582,599.06,598.38,1.032]
[1746647704793,2.26285338,599.05,598.38,1.032]
[1746647704995,1.26438582,599.04,598.38,1.032]
[1746647705189,1.26438582,599.03,598.38,1.032]
[1746647705388,1.26438582,599.02,598.38,1.032]
[1746647705590,1.26438582,599.01,598.38,1.032]
[1746647705793,1.26438582,599.0,598.38,1.032]
[1746647705993,1.26438582,598.99,598.38,1.032]
[1746647706190,1.26438582,598.98,598.38,1.032]
[1746647706395,1.26438582,598.97,598.38,1.032]
[1746647706594,1.26438582,598.96,598.38,1.032]
[1746647706796,1.26438582,598.95,598.38,1.032]
[1746647706991,1.26438582,598.94,598.38,1.032]
[1746647707191,1.26438582,598.93,598.38,1.032]
[1746647707391,1.26438582,598.92,598.38,1.032]
[1746647707691,1.26441909,598.91,598.38,1.032]
[1746647707892,1.26441909,598.9,598.38,1.032]
[1746647708092,1.26441909,598.89,598.38,1.032]
[1746647708291,1.26441909,598.88,598.38,1.032]
[1746647708496,1.26441909,598.87,598.38,1.032]
[1746647708797,1.26441909,598.86,598.38,1.032]
[1746647708992,1.26441909,598.85,598.38,1.032]
[1746647709297,1.26419704,598.84,598.38,1.032]
[1746647709493,1.26419704,598.83,598.38,1.032]
[1746647709793,1.26419704,598.82,598.38,1.032]
[1746647709998,1.26419704,598.81,598.38,1.032]
[1746647710199,1.26419704,598.8,598.38,1.032]
[1746647710395,1.26419704,598.79,598.38,1.032]
[1746647710593,1.26419704,598.78,598.38,1.032]
[1746647710798,1.26419704,598.77,598.38,1.032]
[1746647710998,1.26419704,598.76,598.38,1.032]
[1746647711199,1.26419704,598.75,598.38,1.032]
[1746647711399,1.26419704,598.74,598.38,1.032]
[1746647711602,1.26419704,598.73,598.38,1.032]
[1746647711800,1.26419704,598.72,598.37,0.863]
[1746647712099,2.26286295,598.71,598.37,0.863]
[1746647712299,1.26419704,598.7,598.37,0.863]
[1746647712497,1.26419704,598.69,598.37,0.863]
[1746647712701,1.26419704,598.68,598.37,0.863]
[1746647712902,1.26419704,598.67,598.37,0.863]
[1746647713102,0.99866591,598.68,598.37,0.863]
[1746647713303,1.26601366,598.67,598.37,0.863]
[1746647713504,0.99866591,598.68,598.37,0.863]
[1746647713703,0.99866591,598.67,598.37,0.863]
[1746647714100,0.99866591,598.66,598.37,0.863]
[1746647714698,0.99866591,598.65,598.37,0.863]
[1746647715306,0.99866591,598.64,598.37,0.863]
[1746647715706,0.29071953,599.03,598.37,0.863]
[1746647715900,1.2663222,599.02,598.37,0.863]
[1746647716102,1.2663222,599.01,598.37,0.863]
[1746647716302,2.26552379,599.0,598.37,0.863]
[1746647716504,1.2663222,598.99,598.37,0.863]
[1746647716706,1.2663222,598.98,598.37,0.863]
[1746647716906,1.2663222,598.97,598.37,0.863]
[1746647717103,1.2663222,598.96,598.37,0.863]
[1746647717404,2.26552379,598.95,598.37,0.863]
[1746647717707,1.2663222,598.94,598.38,0.858]
[1746647717903,1.2663222,598.93,598.38,0.858]
[1746647718106,2.26552379,598.92,598.38,0.858]
[1746647718310,1.26641537,598.91,598.38,0.858]
[1746647718509,1.26641537,598.9,598.38,0.858]
[1746647718711,2.26561696,598.89,598.38,0.858]
[1746647719009,1.26641537,598.88,598.38,0.858]
[1746647719204,2.26561696,598.87,598.38,0.858]
[1746647719410,1.26641537,598.86,598.38,0.858]
[1746647719608,0.99920159,598.87,598.38,0.858]
[1746647719609,2.26561696,598.85,598.38,0.858]
[1746647719809,1.26641537,598.84,598.38,0.858]
[1746647720011,1.26641537,598.83,598.38,0.858]
[1746647720207,1.26641537,598.82,598.38,0.858]
[1746647720505,1.26641537,598.81,598.38,0.858]
[1746647720710,1.26641537,598.8,598.38,0.858]
[1746647721010,1.26641537,598.79,598.38,0.858]
[1746647721211,2.26561696,598.78,598.38,0.858]
[1746647721412,1.26641537,598.77,598.38,0.858]
[1746647721605,1.26641537,598.76,598.38,0.858]
[1746647721806,1.26641537,598.75,598.38,0.858]
[1746647722005,1.26641537,598.74,598.38,0.858]
[1746647722210,1.26641537,598.73,598.38,0.858]
[1746647722411,2.26561696,598.72,598.38,0.858]
[1746647722613,1.26641537,598.71,598.38,0.858]
[1746647722912,2.26561696,598.7,598.38,0.858]
[1746647723212,1.26650887,598.69,598.38,0.858]
[1746647723409,2.26571046,598.68,598.38,0.858]
[1746647723610,0.99920159,598.68,598.38,0.858]
[1746647724112,0.99920159,598.67,598.38,0.858]
[1746647724812,0.99920159,598.66,598.38,0.858]
[1746647725308,0.99920159,598.65,598.38,0.858]
[1746647725713,0.99920159,598.64,598.38,0.858]
[1746647726114,0.29072075,599.03,598.38,0.858]
[1746647726415,1.26809481,599.02,598.38,0.858]
[1746647726615,1.26809481,599.01,598.38,0.858]
[1746647726813,2.26789109,599.0,598.38,0.858]
[1746647727008,1.26809481,598.99,598.38,0.858]
[1746647727312,1.26809481,598.98,598.38,0.858]
[1746647727513,2.26788068,598.97,598.38,0.858]
[1746647727712,1.26809481,598.96,598.38,0.858]
[1746647727913,1.26411321,599.95,598.38,0.858]
[1746647727914,2.26788068,598.95,598.38,0.858]
[1746647728113,1.26809481,598.94,598.38,0.858]
[1746647728413,1.26809481,598.93,598.38,0.858]
[1746647728615,1.26809481,598.92,598.38,0.858]
[1746647728815,1.26809481,598.91,598.38,0.858]
[1746647729013,2.26788068,598.9,598.38,0.858]
[1746647729213,1.26809481,598.89,598.38,0.858]
[1746647729415,2.26788068,598.88,598.38,0.858]
[1746647729716,1.26809481,598.87,598.38,0.858]
[1746647730009,0.29066732,599.1,598.38,0.858]
[1746647730010,2.26788068,598.86,598.38,0.858]
[1746647730214,2.26788068,598.85,598.38,0.858]
[1746647730510,1.26809481,598.84,598.38,0.858]
[1746647730714,1.26809481,598.83,598.38,0.858]
[1746647730916,1.26809481,598.82,598.38,0.858]
[1746647731112,1.26809481,598.81,598.38,0.858]
[1746647731317,2.26788068,598.8,598.38,0.858]
[1746647731518,1.26809481,598.79,598.38,0.858]
[1746647731817,1.26809481,598.78,598.38,0.858]
[1746647732018,0.99978587,598.78,598.38,0.858]
[1746647732217,1.26623935,598.77,598.38,0.858]
[1746647732418,1.26623935,598.76,598.38,0.858]
[1746647732618,2.26602522,598.75,598.38,0.858]
[1746647732819,0.99978587,598.75,598.38,0.858]
[1746647733217,0.99978587,598.74,598.38,0.858]
[1746647733513,0.99978587,598.73,598.38,0.858]
[1746647733919,0.99978587,598.72,598.38,0.858]
[1746647734220,0.29068311,599.1,598.38,0.858]
[1746647734419,1.26493242,599.09,598.38,0.858]
[1746647734616,1.26499303,599.08,598.38,0.858]
[1746647734914,0.29068311,599.1,598.38,0.858]
[1746647734915,2.26385472,599.07,598.38,0.858]
[1746647735114,2.26385472,599.06,598.38,0.858]
[1746647735317,1.26499303,599.05,598.38,0.858]
[1746647735514,1.26499303,599.04,598.38,0.858]
[1746647735718,1.26499303,599.03,598.38,0.858]
[1746647735918,1.26499303,599.02,598.38,0.858]
[1746647736118,1.26499303,599.01,598.38,0.858]
[1746647736318,1.26499303,599.0,598.39,0.33423018]
[1746647736513,0.69329039,600.47,598.39,0.33423018]
[1746647736514,1.26499303,598.99,598.39,0.33423018]
[1746647736815,1.26499303,598.98,598.39,0.33423018]
[1746647737018,1.26499303,598.97,598.39,0.33423018]
[1746647737318,1.26499303,598.96,598.39,0.33423018]
[1746647737516,2.26349702,598.95,598.39,0.33423018]
[1746647737717,2.26349702,598.94,598.39,0.33423018]
[1746647737920,1.26499303,598.93,598.39,0.33423018]
[1746647738112,0.29063941,599.2,598.39,0.33423018]
[1746647738316,1.26403657,599.19,598.39,0.33423018]
[1746647738516,1.26403657,599.18,598.39,0.33423018]
[1746647738716,1.26403657,599.17,598.39,0.33423018]
[1746647738918,1.26403657,599.16,598.39,0.33423018]
[1746647739114,1.26403657,599.15,598.39,0.33423018]
[1746647739319,1.26403657,599.14,598.39,0.33423018]
[1746647739518,0.29063941,599.2,598.39,0.33423018]
[1746647739519,1.26403657,599.13,598.39,0.33423018]
[1746647739712,1.26403657,599.12,598.39,0.33423018]
[1746647739915,1.26403657,599.11,598.39,0.33423018]
[1746647740119,1.26403657,599.1,598.39,0.33423018]
[1746647740314,1.26403657,599.09,598.39,0.33423018]
[1746647740515,1.26403657,599.08,598.39,0.33423018]
[1746647740713,1.26403657,599.07,598.39,0.33423018]
[1746647740917,1.26403657,599.06,598.39,0.33423018]
[1746647741113,1.26403657,599.05,598.39,0.33423018]
[1746647741315,1.26403657,599.04,598.39,0.33423018]
[1746647741513,1.26403657,599.03,598.39,0.33423018]
[1746647741713,1.26403657,599.02,598.4,0.715]
[1746647741913,1.26403657,599.01,598.4,1.04922459]
[1746647742213,1.26403657,599.0,598.4,1.04922459]
[1746647742412,1.26403657,598.99,598.4,1.04922459]
[1746647742613,1.26403657,598.98,598.4,1.04922459]
[1746647742817,1.26403657,598.97,598.4,2.08222459]
[1746647743114,1.26403657,598.96,598.4,2.08222459]
[1746647743321,1.26403657,598.95,598.4,2.08222459]
[1746647743515,1.26403657,598.94,598.4,2.08222459]
[1746647743718,0.29063577,599.21,598.4,2.08222459]
[1746647743920,1.2621153,599.2,598.4,2.08222459]
[1746647744118,1.2621153,599.19,598.4,2.08222459]
[1746647744319,1.2621153,599.18,598.4,2.08222459]
[1746647744516,1.2621153,599.17,598.4,2.08222459]
[1746647744721,1.2621153,599.16,598.4,2.08222459]
[1746647744917,1.2621153,599.15,598.4,2.08222459]
[1746647745120,1.2621153,599.14,598.4,2.08222459]
[1746647745318,1.2621153,599.13,598.4,2.08222459]
[1746647745523,1.2621153,599.12,598.4,3.04022459]
[1746647745721,1.2621153,599.11,598.4,3.04022459]
[1746647745922,1.2621153,599.1,598.4,3.04022459]
[1746647746122,1.2621153,599.09,598.4,3.04022459]
[1746647746422,1.2621153,599.08,598.4,3.04022459]
[1746647746622,1.2621153,599.07,598.4,3.04022459]
[1746647746823,1.2621153,599.06,598.4,3.04022459]
[1746647747024,1.2621153,599.05,598.4,3.04022459]
[1746647747226,1.2621153,599.04,598.4,3.04022459]
[1746647747525,1.2621153,599.03,598.4,3.04022459]
[1746647747725,1.2621153,599.02,598.4,3.04022459]
[1746647747921,1.2621153,599.01,598.4,3.04022459]
[1746647748126,1.2621153,599.0,598.4,3.04022459]
[1746647748327,1.2621153,598.99,598.4,3.04022459]
[1746647748521,1.2621153,598.98,598.4,3.04022459]
[1746647748724,1.2621153,598.97,598.4,3.04022459]
[1746647748926,1.2621153,598.96,598.4,3.04022459]
[1746647749128,1.26189836,598.95,598.4,3.04022459]
[1746647749322,1.26189836,598.94,598.4,3.04022459]
[1746647749524,1.26189836,598.93,598.4,3.04022459]
[1746647749722,0.29064183,599.19,598.4,3.04022459]
[1746647750024,1.26173727,599.18,598.4,3.04022459]
[1746647750224,1.26173727,599.17,598.4,3.04022459]
[1746647750421,1.26173727,599.16,598.4,3.04022459]
[1746647750623,1.26173727,599.15,598.4,3.04022459]
[1746647750833,1.26173727,599.14,598.4,3.04022459]
[1746647751030,1.26173727,599.13,598.4,3.04022459]
[1746647751229,1.26173727,599.12,598.4,3.04022459]
[1746647751429,1.26173727,599.11,598.4,3.04022459]
[1746647751632,1.26173727,599.1,598.4,3.04022459]
[1746647751826,1.26173727,599.09,598.4,3.04022459]
[1746647752030,1.26173727,599.08,598.4,3.04022459]
[1746647752231,1.26173727,599.07,598.4,3.04022459]
[1746647752526,1.26173727,599.06,598.4,3.04022459]
[1746647752832,1.26173727,599.05,598.4,3.04022459]
[1746647753134,1.26173727,599.04,598.4,3.04022459]
[1746647753327,1.26173727,599.03,598.4,3.04022459]
[1746647753526,1.26173727,599.02,598.4,3.04022459]
[1746647753726,1.26173727,599.01,598.4,3.04022459]
[1746647753930,1.26173727,599.0,598.4,3.04022459]
[1746647754230,1.26173727,598.99,598.4,3.04022459]
[1746647754430,1.26173727,598.98,598.4,3.04022459]
[1746647754632,1.26159722,598.97,598.4,3.04022459]
[1746647754833,1.26159722,598.96,598.4,3.04022459]
[1746647755031,1.26159722,598.95,598.4,3.04022459]
[1746647755231,1.26159722,598.94,598.4,2.32522459]
[1746647755431,0.29064305,599.19,598.4,2.32522459]
[1746647755727,1.26137889,599.18,598.4,2.32522459]
[1746647755933,1.26137889,599.17,598.4,2.32522459]
[1746647756127,1.26137889,599.16,598.4,2.32522459]
[1746647756331,1.26137889,599.15,598.4,2.32522459]
[1746647756533,1.26137889,599.14,598.4,2.32522459]
[1746647756734,1.26137889,599.13,598.4,2.32522459]
[1746647756931,1.26137889,599.12,598.4,2.32522459]
[1746647757131,1.26137889,599.11,598.4,2.32522459]
[1746647757333,1.26137889,599.1,598.4,2.32522459]
[1746647757531,1.26137889,599.09,598.4,2.32522459]
[1746647757730,1.26137889,599.08,598.4,2.32522459]
[1746647757927,1.26137889,599.07,598.4,2.32522459]
[1746647758129,1.26150124,599.06,598.4,2.32522459]
[1746647758330,1.26150124,599.05,598.4,2.32522459]
[1746647758531,1.26150124,599.04,598.4,2.32522459]
[1746647758731,1.26150124,599.03,598.4,3.01322459]
[1746647758928,1.26150124,599.02,598.4,3.01322459]
[1746647759232,1.26150124,599.01,598.4,3.01322459]
[1746647759430,1.26150124,599.0,598.4,3.01322459]
[1746647759629,1.26150124,598.99,598.4,3.01322459]
[1746647759831,1.26150124,598.98,598.4,3.01322459]
[1746647760034,0.2906115,599.26,598.4,3.01322459]
[1746647760234,1.25579505,599.25,598.4,3.01322459]
[1746647760532,1.25579505,599.25,598.41,0.33421901]
[1746647760732,0.2906115,599.26,598.41,0.33421901]
[1746647760928,0.69334864,600.64,598.41,0.33421901]
[1746647761132,1.2557886,599.25,598.41,0.33421901]
[1746647761334,0.29050475,599.26,598.41,0.33421901]
[1746647761532,1.2557886,599.25,598.41,0.33421901]
[1746647761731,1.2557886,599.24,598.41,0.33421901]
[1746647762030,1.2557886,599.23,598.41,0.33421901]
[1746647762229,1.2557886,599.22,598.41,0.33421901]
[1746647762435,1.2557886,599.21,598.41,0.33421901]
[1746647762634,1.2557886,599.2,598.41,0.33421901]
[1746647762830,1.2557886,599.19,598.41,0.33421901]
[1746647763029,1.2557886,599.18,598.41,0.33421901]
[1746647763330,1.2557886,599.17,598.41,0.33421901]
[1746647763529,1.2557886,599.16,598.41,0.33421901]
[1746647763732,1.2557886,599.15,598.41,0.33421901]
[1746647763929,1.2557886,599.14,598.41,0.33421901]
[1746647764131,1.2557886,599.13,598.41,0.33421901]
[1746647764335,1.2557886,599.12,598.41,0.33421901]
[1746647764532,1.2557886,599.11,598.41,0.33421901]
[1746647764835,1.2557886,599.1,598.41,1.44921901]
[1746647765035,1.2557886,599.09,598.41,1.44921901]
[1746647765236,1.2557886,599.08,598.41,1.44921901]
[1746647765536,1.2557886,599.07,598.41,1.44921901]
[1746647765737,1.2557886,599.06,598.41,1.44921901]
[1746647765929,1.2557886,599.05,598.41,1.44921901]
[1746647766134,1.2557886,599.04,598.41,1.44921901]
[1746647766331,1.2557886,599.03,598.41,1.44921901]
[1746647766535,1.2557886,599.02,598.41,1.44921901]
[1746647766733,1.2557886,599.01,598.41,1.44921901]
[1746647766938,1.2557886,599.0,598.41,1.44921901]
[1746647767234,1.2557886,598.99,598.41,1.44921901]
[1746647767437,1.2557886,598.98,598.41,1.44921901]
[1746647767638,1.2557886,598.97,598.41,1.44921901]
[1746647767839,1.2557886,598.96,598.41,1.44921901]
[1746647768138,1.2557886,598.95,598.41,1.44921901]
[1746647768336,1.25949345,598.94,598.41,1.44921901]
[1746647768534,0.69334864,600.49,598.41,1.44921901]
[1746647768738,1.25965072,599.95,598.41,1.44921901]
[1746647769037,1.56639653,599.94,598.41,1.44921901]
[1746647769237,1.56639653,599.93,598.41,1.44921901]
[1746647769437,1.25965072,599.92,598.41,2.42321901]
[1746647769632,1.25965072,599.91,598.41,2.42321901]
[1746647769834,1.25909052,599.9,598.41,2.42321901]
[1746647770032,1.25909052,599.89,598.41,2.42321901]
[1746647770232,1.25909052,599.88,598.41,2.42321901]
[1746647770437,1.56583633,599.87,598.41,2.42321901]
[1746647770639,1.25909052,599.86,598.41,2.42321901]
[1746647770834,1.25909052,599.85,598.41,2.42321901]
[1746647771035,1.25909052,599.84,598.41,2.42321901]
[1746647771240,1.25909052,599.83,598.41,2.42321901]
[1746647771439,1.25909052,599.82,598.41,2.42321901]
[1746647771635,1.56583633,599.81,598.41,2.42321901]
[1746647771941,1.25909052,599.8,598.41,3.16121901]
[1746647772141,1.25909052,599.79,598.41,3.16121901]
[1746647772440,1.56583633,599.78,598.41,4.06021901]
[1746647772641,1.56583633,599.77,598.41,4.06021901]
[1746647772841,1.25909052,599.76,598.41,4.06021901]